[Event "FIDE WCCC Girls-10 2024"]
[Site "Montesilvano"]
[Date "2024.11.22"]
[Round "7.34"]
[White "Milojevic, Dunja"]
[Black "Guerra Mansilla, Maria Ignacia"]
[Result "1-0"]
[Annotator "NA"]
[ECO "E71"]
[WhiteElo "1610"]
[BlackElo "1545"]
[PlyCount "63"]
[EventDate "2024.11.18"]
[EventType "swiss"]
[EventCountry "ITA"]
[SourceTitle "playchess.com"]
[Source "ChessBase"]
[SourceQuality "1"]
[TimeControl "5400+30"]

1. d4 {[%emt 0:00:01]} Nf6 {[%emt 0:00:44]} 2. c4 {[%emt 0:00:06]} g6 {[%emt 0:00:07]} 3. Nc3 {[%emt 0:00:06]} Bg7 {[%emt 0:00:07]} 4. e4 {[%emt 0:00:10]} d6 {[%emt 0:00:17]} 5. h3 {[%emt 0:00:34]} O-O {[%emt 0:00:50]} 6. Be3 {[%emt 0:00:07]} e5 {[%emt 0:01:35]} 7. d5 {[%emt 0:00:10]} c6 {[%emt 0:02:19]} 8. Bd3 {[%emt 0:04:11]} cxd5 {[%emt 0:04:00]} 9. cxd5 {[%emt 0:00:07]} Nbd7 {[%emt 0:05:01]} 10. g4 {[%emt 0:01:01]} Nc5 {[%emt 0:19:56]} 11. Bc2 {[%emt 0:00:19]} b6 {[%emt 0:09:54]} 12. b4 {[%emt 0:04:21]} Ncd7 {[%emt 0:00:34]} 13. Nge2 {[%emt 0:04:35]} Bb7 {[%emt 0:05:46]} 14. Kf1 {[%emt 0:02:53]} Rc8 {[%emt 0:12:57]} 15. Qd2 {[%emt 0:05:25]} Qe7 {[%emt 0:06:08]} 16. Kg2 {[%emt 0:03:19]} Ba6 {[%emt 0:09:13]} 17. Ng3 {[%emt 0:03:43]} Rc7 {[%emt 0:01:34]} 18. Rac1 {[%emt 1:08:22]} Rfc8 {[%emt 0:02:10]} 19. Bb1 {[%emt 0:00:00]} h6 {[%emt 0:04:10]} 20. f3 {[%emt 0:00:00]} Kh7 {[%emt 0:01:54]} 21. h4 {[%emt 0:00:00]} Kg8 {[%emt 0:00:52]} 22. h5 {[%emt 0:00:00]} g5 {[%emt 0:00:29]} 23. Nf5 {[%emt 0:00:00]} Qf8 {[%emt 0:03:32]} 24. Ne2 {[%emt 0:00:00]} Bxe2 {[%emt 0:01:00]} 25. Qxe2 {[%emt 0:00:00]} Rxc1 {[%emt 0:00:45]} 26. Bxc1 {[%emt 0:00:00]} Ne8 {[%emt 0:02:19]} 27. Be3 {[%emt 0:00:00]} Nb8 {[%emt 0:00:52]} 28. Qd2 {[%emt 0:00:00]} Nc7 {[%emt 0:01:43]} 29. Bxg5 {[%emt 0:00:00]} hxg5 {[%emt 0:02:07]} 30. Qxg5 {[%emt 0:00:00]} f6 {[%emt 0:01:07]} 31. Qg6 {[%emt 0:00:00]} Kh8 {[%emt 0:01:23]} 32. h6 {[%emt 0:00:00]} 1-0

[Event "FIDE WCCC Girls-10 2024"]
[Site "Montesilvano"]
[Date "2024.11.22"]
[Round "7.35"]
[White "Muradli, Sabira"]
[Black "Tykalova, Barbora"]
[Result "0-1"]
[Annotator "NA RC"]
[ECO "B01"]
[WhiteElo "1430"]
[BlackElo "1596"]
[PlyCount "130"]
[EventDate "2024.11.18"]
[EventType "swiss"]
[EventCountry "ITA"]
[SourceTitle "playchess.com"]
[Source "ChessBase"]
[SourceQuality "1"]
[TimeControl "5400+30"]

1. e4 {[%emt 0:00:02]} d5 {[%emt 0:00:09]} 2. exd5 {[%emt 0:00:05]} Qxd5 {[%emt 0:00:37]} 3. Nc3 {[%emt 0:00:06]} Qa5 {[%emt 0:00:33]} 4. Bc4 {[%emt 0:00:09]} c6 {[%emt 0:01:03]} 5. d3 {[%emt 0:00:10]} Nf6 {[%emt 0:01:11]} 6. Nge2 {[%emt 0:01:03]} Bf5 {[%emt 0:02:54]} 7. a4 {[%emt 0:02:06]} e6 {[%emt 0:02:42]} 8. O-O {[%emt 0:00:13]} Bd6 {[%emt 0:02:19]} 9. Ng3 {[%emt 0:00:46]} Bg6 {[%emt 0:01:18]} 10. Be3 {[%emt 0:01:49]} Qc7 {[%emt 0:02:09]} 11. Bg5 {[%emt 0:03:01]} Nbd7 {[%emt 0:02:55]} 12. Qf3 {[%emt 0:02:06]} Ne5 {[%emt 0:02:06]} 13. Qe2 {[%emt 0:00:57]} Nxc4 {[%emt 0:02:31]} 14. dxc4 {[%emt 0:01:42]} h5 {[%emt 0:06:01]} 15. Bxf6 {[%emt 0:01:03]} gxf6 {[%emt 0:00:24]} 16. Qf3 {[%emt 0:02:15]} f5 {[%emt 0:01:47]} 17. Rfe1 {[%emt 0:00:19]} O-O-O {[%emt 0:02:38]} 18. h4 {[%emt 0:02:57]} Be7 {[%emt 0:02:29]} 19. Nge2 {[%emt 0:13:01]} Bxh4 {[%emt 0:02:36]} 20. Nf4 {[%emt 0:00:14]} Rdg8 {[%emt 0:07:59]} 21. Rad1 {[%emt 0:07:19]} e5 {[%emt 0:09:20]} 22. Nxg6 {[%emt 0:09:20]} fxg6 {[%emt 0:00:14]} 23. Ne4 {[%emt 0:01:12]} Be7 {[%emt 0:02:36]} 24. Nc3 {[%emt 0:00:00]} Bh4 {[%emt 0:00:00]} 25. Ne4 {[%emt 0:01:00]} Be7 {[%emt 0:01:00]} 26. Nc3 e4 {[%emt 0:03:13]} 27. Qh3 {[%emt 0:02:44]} Qf4 {[%emt 0:02:30]} 28. Rxe4 {[%emt 0:01:14]} Qc7 {[%emt 0:02:33]} 29. Re6 {[%emt 0:01:07]} Kb8 {[%emt 0:02:29]} 30. Rde1 {[%emt 0:01:24]} Bc5 {[%emt 0:02:47]} 31. R6e5 {[%emt 0:08:54]} Qb6 {[%emt 0:02:03]} 32. Kh1 {[%emt 0:06:07]} Bxf2 {[%emt 0:02:37]} 33. R1e2 {[%emt 0:04:57]} Bd4 {[%emt 0:02:45]} 34. Re6 {[%emt 0:00:35]} Qxb2 {[%emt 0:03:37]} 35. Nd1 {[%emt 0:06:04]} Qc1 {[%emt 0:03:41]} 36. Qg3+ {[%emt 0:00:29]} Ka8 {[%emt 0:00:44]} 37. Qe1 {[%emt 0:00:39]} a6 {[%emt 0:01:33]} 38. c3 {[%emt 0:01:44]} Bb6 {[%emt 0:02:33]} 39. Nb2 {[%emt 0:09:23]} Bd4 {[%emt 0:00:00]} 40. Nd1 {[%emt 0:00:00]} Bb6 {[%emt 0:01:00]} 41. Nb2 {[%emt 0:12:44]} Qg5 {[%emt 0:02:38]} 42. Nd3 {[%emt 0:00:00]} h4 {[%emt 0:02:36]} 43. Re8+ {[%emt 0:00:00]} Rxe8 {[%emt 0:02:15]} 44. Rxe8+ {[%emt 0:00:00]} Rxe8 {[%emt 0:00:06]} 45. Qxe8+ {[%emt 0:00:00]} Ka7 {[%emt 0:00:37]} 46. Qe5 {[%emt 0:00:00]} Qd2 {[%emt 0:01:48]} 47. Ne1 {[%emt 0:00:00]} Bf2 {[%emt 0:00:20]} 48. Nf3 {[%emt 0:00:00]} Qd1+ {[%emt 0:00:11]} 49. Ne1 {[%emt 0:00:00]} Qxe1+ {[%emt 0:00:04]} 50. Qxe1 {[%emt 0:00:00]} Bxe1 {[%emt 0:00:10]} 51. Kh2 {[%emt 0:00:00]} Bxc3 {[%emt 0:00:10]} 52. Kh3 {[%emt 0:00:00]} g5 {[%emt 0:00:08]} 53. a5 {[%emt 0:00:00]} Bxa5 {[%emt 0:00:08]} 54. g4 {[%emt 0:00:00]} fxg4+ {[%emt 0:00:07]} 55. Kxg4 {[%emt 0:00:00]} Kb6 {[%emt 0:00:05]} 56. c5+ {[%emt 0:00:00]} Kxc5 {[%emt 0:00:14]} 57. Kh3 {[%emt 0:00:00]} b5 {[%emt 0:00:09]} 58. Kh2 {[%emt 0:00:00]} b4 {[%emt 0:00:03]} 59. Kh3 {[%emt 0:00:00]} b3 {[%emt 0:00:05]} 60. Kh2 {[%emt 0:00:00]} b2 {[%emt 0:00:07]} 61. Kh3 {[%emt 0:00:00]} b1=Q {[%emt 0:00:05]} 62. Kh2 {[%emt 0:00:00]} Qd3 {[%emt 0:00:14]} 63. Kg2 {[%emt 0:00:00]} Be1 {[%emt 0:00:31]} 64. Kh1 {[%emt 0:00:00]} Qf1+ {[%emt 0:00:11]} 65. Kh2 {[%emt 0:00:00]} Bg3# {[%emt 0:00:06]} 0-1

[Event "FIDE WCCC Girls-10 2024"]
[Site "Montesilvano"]
[Date "2024.11.22"]
[Round "7.37"]
[White "Ritinioti, Sofia"]
[Black "Smilic, Nina"]
[Result "0-1"]
[Annotator "NA RC"]
[ECO "A45"]
[WhiteElo "1534"]
[BlackElo "1540"]
[PlyCount "172"]
[EventDate "2024.11.18"]
[EventType "swiss"]
[EventCountry "ITA"]
[SourceTitle "playchess.com"]
[Source "ChessBase"]
[SourceQuality "1"]
[TimeControl "5400+30"]

1. d4 {[%emt 0:00:04]} Nf6 {[%emt 0:00:07]} 2. Bf4 {[%emt 0:00:23]} c5 {[%emt 0:00:44]} 3. e3 {[%emt 0:01:21]} Qb6 {[%emt 0:01:20]} 4. Nc3 {[%emt 0:01:25]} d6 {[%emt 0:04:39]} 5. Nf3 {[%emt 0:02:29]} g6 {[%emt 0:02:05]} 6. Rb1 {[%emt 0:02:46]} Bg7 {[%emt 0:00:54]} 7. Be2 {[%emt 0:03:57]} O-O {[%emt 0:01:01]} 8. h3 {[%emt 0:01:42]} Nbd7 {[%emt 0:07:10]} 9. O-O {[%emt 0:01:42]} a6 {[%emt 0:01:12]} 10. dxc5 {[%emt 0:05:53]} Nxc5 {[%emt 0:00:32]} 11. Qd2 {[%emt 0:04:50]} Bf5 {[%emt 0:02:08]} 12. Bd3 {[%emt 0:04:43]} Nfe4 {[%emt 0:12:36]} 13. Nxe4 {[%emt 0:01:46]} Bxe4 {[%emt 0:10:33]} 14. Bxe4 {[%emt 0:02:19]} Nxe4 {[%emt 0:00:13]} 15. Qe2 {[%emt 0:02:55]} Rac8 {[%emt 0:01:56]} 16. c3 {[%emt 0:01:06]} Rfd8 {[%emt 0:04:21]} 17. Rfd1 {[%emt 0:01:43]} Qa5 {[%emt 0:04:41]} 18. Qc2 {[%emt 0:03:05]} Nf6 {[%emt 0:01:53]} 19. a3 {[%emt 0:01:20]} Qb6 {[%emt 0:02:32]} 20. e4 {[%emt 0:03:54]} Nd7 {[%emt 0:06:01]} 21. Re1 {[%emt 0:03:03]} Rc4 {[%emt 0:05:05]} 22. Rbd1 {[%emt 0:03:41]} Qc6 {[%emt 0:05:24]} 23. Nd2 {[%emt 0:03:48]} Rc5 {[%emt 0:03:02]} 24. Nb3 {[%emt 0:02:06]} Rh5 {[%emt 0:03:07]} 25. Re2 {[%emt 0:08:34]} Qc4 {[%emt 0:04:35]} 26. Rde1 {[%emt 0:04:19]} Rb5 {[%emt 0:04:01]} 27. Nd2 {[%emt 0:01:54]} Qc8 {[%emt 0:01:30]} 28. Nf3 {[%emt 0:03:01]} Ne5 {[%emt 0:03:24]} 29. Nxe5 {[%emt 0:01:27]} Bxe5 {[%emt 0:00:13]} 30. Bxe5 {[%emt 0:00:26]} Rxe5 {[%emt 0:00:11]} 31. f4 {[%emt 0:01:13]} Rc5 {[%emt 0:00:39]} 32. Qd2 {[%emt 0:03:24]} Qc6 {[%emt 0:02:50]} 33. e5 {[%emt 0:01:36]} Qb6 {[%emt 0:01:22]} 34. Qe3 {[%emt 0:01:22]} dxe5 {[%emt 0:01:45]} 35. b4 {[%emt 0:01:29]} Rc6 {[%emt 0:00:17]} 36. Qxb6 {[%emt 0:00:18]} Rxb6 {[%emt 0:00:06]} 37. Rxe5 {[%emt 0:00:57]} e6 {[%emt 0:04:51]} 38. R5e3 {[%emt 0:01:21]} Rc6 {[%emt 0:00:00]} 39. a4 {[%emt 0:01:17]} Rdc8 {[%emt 0:00:00]} 40. Rc1 {[%emt 0:00:35]} Rc4 {[%emt 0:00:00]} 41. g3 {[%emt 0:03:41]} Rxb4 {[%emt 0:00:00]} 42. cxb4 {[%emt 0:00:35]} Rxc1+ {[%emt 0:00:00]} 43. Kg2 {[%emt 0:00:48]} Ra1 {[%emt 0:00:00]} 44. a5 {[%emt 0:00:33]} Kf8 {[%emt 0:00:00]} 45. Kf3 {[%emt 0:00:41]} Rc1 {[%emt 0:00:00]} 46. Rb3 {[%emt 0:01:04]} Ke7 {[%emt 0:00:59]} 47. b5 {[%emt 0:01:03]} Rc5 {[%emt 0:01:03]} 48. bxa6 {[%emt 0:00:24]} bxa6 {[%emt 0:00:11]} 49. Ra3 {[%emt 0:01:15]} Kd6 {[%emt 0:01:20]} 50. Ke3 {[%emt 0:01:49]} Kc6 {[%emt 0:01:32]} 51. Kd4 {[%emt 0:01:04]} Rd5+ {[%emt 0:00:33]} 52. Kc4 {[%emt 0:00:25]} Rc5+ {[%emt 0:00:29]} 53. Kd4 {[%emt 0:00:48]} Rd5+ {[%emt 0:00:47]} 54. Kc4 {[%emt 0:00:11]} Rb5 {[%emt 0:00:49]} 55. h4 {[%emt 0:00:35]} h5 {[%emt 0:00:11]} 56. Ra4 {[%emt 0:01:53]} Rd5 {[%emt 0:00:51]} 57. Ra3 {[%emt 0:00:47]} Rc5+ {[%emt 0:00:39]} 58. Kb4 {[%emt 0:00:54]} Rb5+ {[%emt 0:00:33]} 59. Kc4 {[%emt 0:00:18]} Rd5 {[%emt 0:00:17]} 60. Kc3 {[%emt 0:02:35]} Kb5 {[%emt 0:00:38]} 61. Ra1 {[%emt 0:01:47]} Rc5+ {[%emt 0:00:29]} 62. Kb3 {[%emt 0:00:33]} Rc4 {[%emt 0:00:21]} 63. Ra2 {[%emt 0:01:40]} Rb4+ {[%emt 0:00:15]} 64. Kc3 {[%emt 0:00:52]} Ra4 {[%emt 0:00:11]} 65. Rxa4 {[%emt 0:00:48]} Kxa4 {[%emt 0:00:09]} 66. Kb2 {[%emt 0:00:31]} Kxa5 {[%emt 0:00:06]} 67. Ka3 {[%emt 0:00:34]} Kb5 {[%emt 0:00:14]} 68. Kb3 {[%emt 0:00:19]} a5 {[%emt 0:00:11]} 69. Ka2 {[%emt 0:00:22]} Ka4 {[%emt 0:00:29]} 70. Kb2 {[%emt 0:00:24]} Kb4 {[%emt 0:00:10]} 71. Ka2 {[%emt 0:00:11]} a4 {[%emt 0:00:08]} 72. Kb2 {[%emt 0:00:46]} a3+ {[%emt 0:00:06]} 73. Ka2 {[%emt 0:00:21]} Ka4 {[%emt 0:00:49]} 74. Kb1 {[%emt 0:00:35]} Kb3 {[%emt 0:00:13]} 75. Ka1 {[%emt 0:00:18]} a2 {[%emt 0:00:12]} 76. f5 {[%emt 0:00:27]} exf5 {[%emt 0:00:14]} 77. g4 {[%emt 0:00:16]} f4 {[%emt 0:00:10]} 78. g5 {[%emt 0:00:23]} Kc3 {[%emt 0:00:23]} 79. Kxa2 {[%emt 0:00:14]} f3 {[%emt 0:00:23]} 80. Ka3 {[%emt 0:00:12]} f2 {[%emt 0:00:16]} 81. Ka4 {[%emt 0:00:07]} f1=Q {[%emt 0:00:11]} 82. Ka5 {[%emt 0:00:16]} Qb1 {[%emt 0:00:36]} 83. Ka6 {[%emt 0:00:13]} Kc4 {[%emt 0:00:22]} 84. Ka7 {[%emt 0:00:12]} Kc5 {[%emt 0:00:20]} 85. Ka8 {[%emt 0:00:07]} Kc6 {[%emt 0:00:10]} 86. Ka7 {[%emt 0:00:07]} Qb7# {[%emt 0:00:24]} 0-1

[Event "FIDE WCCC Girls-10 2024"]
[Site "Montesilvano"]
[Date "2024.11.22"]
[Round "7.38"]
[White "Giss, Annika"]
[Black "Yang, Haeun"]
[Result "1-0"]
[Annotator "NA RC"]
[ECO "C79"]
[WhiteElo "1586"]
[BlackElo "1475"]
[PlyCount "43"]
[EventDate "2024.11.18"]
[EventType "swiss"]
[EventCountry "ITA"]
[SourceTitle "playchess.com"]
[Source "ChessBase"]
[SourceQuality "1"]
[TimeControl "5400+30"]

1. e4 {[%emt 0:00:01]} e5 {[%emt 0:00:05]} 2. Nf3 {[%emt 0:00:08]} Nc6 {[%emt 0:00:03]} 3. Bb5 {[%emt 0:00:14]} d6 {[%emt 0:00:14]} 4. O-O {[%emt 0:00:33]} Nf6 {[%emt 0:00:01]} 5. Re1 {[%emt 0:00:38]} a6 {[%emt 0:00:03]} 6. Ba4 {[%emt 0:01:02]} b5 {[%emt 0:00:09]} 7. Bb3 {[%emt 0:00:15]} Bg4 {[%emt 0:00:07]} 8. h3 {[%emt 0:00:10]} Bh5 {[%emt 0:00:03]} 9. c3 {[%emt 0:01:49]} b4 {[%emt 0:00:03]} 10. Ba4 {[%emt 0:00:47]} Qd7 {[%emt 0:00:24]} 11. d4 {[%emt 0:01:16]} exd4 {[%emt 0:00:27]} 12. cxd4 {[%emt 0:00:13]} O-O-O {[%emt 0:02:18]} 13. d5 {[%emt 0:00:26]} Kb8 {[%emt 0:00:58]} 14. Bxc6 {[%emt 0:01:20]} Qc8 {[%emt 0:00:09]} 15. Qa4 {[%emt 0:03:27]} Nd7 {[%emt 0:00:54]} 16. Qxb4+ {[%emt 0:01:57]} Nb6 {[%emt 0:00:10]} 17. Be3 {[%emt 0:02:08]} Ka7 {[%emt 0:00:25]} 18. a4 {[%emt 0:00:47]} Qb8 {[%emt 0:01:15]} 19. a5 {[%emt 0:00:39]} Bxf3 {[%emt 0:00:22]} 20. axb6+ {[%emt 0:01:29]} cxb6 {[%emt 0:00:05]} 21. Rxa6+ {[%emt 1:21:41]} Kxa6 {[%emt 0:03:43]} 22. Qa4# {[%emt 0:00:30]} 1-0

[Event "FIDE WCCC Girls-10 2024"]
[Site "Montesilvano"]
[Date "2024.11.22"]
[Round "7.39"]
[White "Kocherha, Yelizavieta"]
[Black "Khelfallah, Ikhlas"]
[Result "0-1"]
[Annotator "NA RC"]
[ECO "C58"]
[WhiteElo "1523"]
[BlackElo "1449"]
[PlyCount "30"]
[EventDate "2024.11.18"]
[EventType "swiss"]
[EventCountry "ITA"]
[SourceTitle "playchess.com"]
[Source "ChessBase"]
[SourceQuality "1"]
[TimeControl "5400+30"]

1. e4 {[%emt 0:00:04]} e5 {[%emt 0:00:11]} 2. Nf3 {[%emt 0:00:09]} Nc6 {[%emt 0:00:14]} 3. Bc4 {[%emt 0:00:31]} Nf6 {[%emt 0:00:33]} 4. Ng5 {[%emt 0:00:38]} d5 {[%emt 0:00:29]} 5. exd5 {[%emt 0:00:30]} Na5 {[%emt 0:00:09]} 6. Bb5+ {[%emt 0:00:39]} Bd7 {[%emt 0:00:24]} 7. Bxd7+ {[%emt 0:01:57]} Qxd7 {[%emt 0:00:56]} 8. Qf3 {[%emt 0:02:37]} h6 {[%emt 0:09:10]} 9. Ne4 {[%emt 0:00:20]} Nxd5 {[%emt 0:03:15]} 10. O-O {[%emt 0:01:09]} Be7 {[%emt 0:00:20]} 11. Nbc3 {[%emt 0:00:41]} Nxc3 {[%emt 0:01:40]} 12. Qxc3 {[%emt 0:00:49]} Nc6 {[%emt 0:01:34]} 13. d3 {[%emt 0:00:56]} O-O {[%emt 0:07:13]} 14. h3 {[%emt 0:02:42]} Nd4 {[%emt 0:08:03]} 15. Be3 {[%emt 0:01:46]} Ne2+ {[%emt 0:00:12]} 0-1

[Event "FIDE WCCC Girls-10 2024"]
[Site "Montesilvano"]
[Date "2024.11.22"]
[Round "7.40"]
[White "Babii, Oriiana"]
[Black "Ivanova, Darina"]
[Result "1-0"]
[Annotator "NA RC"]
[ECO "B76"]
[WhiteElo "1481"]
[BlackElo "1516"]
[PlyCount "117"]
[EventDate "2024.11.18"]
[EventType "swiss"]
[EventCountry "ITA"]
[SourceTitle "playchess.com"]
[Source "ChessBase"]
[SourceQuality "1"]
[TimeControl "5400+30"]

1. e4 {[%emt 0:00:02]} c5 {[%emt 0:00:07]} 2. Nf3 {[%emt 0:00:05]} Nc6 {[%emt 0:00:09]} 3. d4 {[%emt 0:00:22]} cxd4 {[%emt 0:00:15]} 4. Nxd4 {[%emt 0:00:09]} g6 {[%emt 0:00:13]} 5. Nc3 {[%emt 0:00:17]} Bg7 {[%emt 0:00:11]} 6. Be3 {[%emt 0:00:23]} Nf6 {[%emt 0:00:21]} 7. Qd2 {[%emt 0:00:34]} O-O {[%emt 0:00:18]} 8. Nb3 {[%emt 0:00:13]} d6 {[%emt 0:00:35]} 9. f3 {[%emt 0:00:17]} a5 {[%emt 0:00:24]} 10. a4 {[%emt 0:00:22]} Be6 {[%emt 0:00:39]} 11. O-O-O {[%emt 0:01:09]} Bxb3 {[%emt 0:00:43]} 12. cxb3 {[%emt 0:00:28]} Rc8 {[%emt 0:00:26]} 13. Kb1 {[%emt 0:00:56]} Nd7 {[%emt 0:02:22]} 14. Bh6 {[%emt 0:01:52]} Nc5 {[%emt 0:00:25]} 15. Bxg7 {[%emt 0:03:29]} Kxg7 {[%emt 0:00:26]} 16. h4 {[%emt 0:01:43]} Nxb3 {[%emt 0:00:15]} 17. Qe3 {[%emt 0:01:38]} f5 {[%emt 0:01:51]} 18. h5 {[%emt 0:01:48]} f4 {[%emt 0:00:30]} 19. h6+ {[%emt 0:01:08]} Kg8 {[%emt 0:00:29]} 20. Bc4+ {[%emt 0:02:21]} Kh8 {[%emt 0:00:44]} 21. Qf2 {[%emt 0:03:25]} Nbd4 {[%emt 0:03:23]} 22. g3 {[%emt 0:09:59]} fxg3 {[%emt 0:01:31]} 23. Qxg3 {[%emt 0:01:24]} Nxf3 {[%emt 0:00:35]} 24. Rh5 {[%emt 0:03:26]} Nce5 {[%emt 0:02:38]} 25. Be6 {[%emt 0:02:56]} Rxc3 {[%emt 0:02:14]} 26. bxc3 {[%emt 0:01:53]} Qb6+ {[%emt 0:00:12]} 27. Kc2 {[%emt 0:01:23]} Qc6 {[%emt 0:00:58]} 28. Rd5 {[%emt 0:13:43]} Qxa4+ {[%emt 0:01:25]} 29. Kb2 {[%emt 0:01:42]} Nc4+ {[%emt 0:00:26]} 30. Kc1 {[%emt 0:08:52]} b5 {[%emt 0:01:27]} 31. Rxb5 {[%emt 0:04:03]} Qxb5 32. Rxb5 Nfe5 33. Bxc4 Nxc4 34. e5 Rf1+ 35. Kc2 Na3+ 36. Kd2 Nxb5 37. Qd3 Rf2+ 38. Ke3 Rb2 39. exd6 exd6 40. c4 a4 41. cxb5 Rb3 42. b6 Rxd3+ 43. Kxd3 a3 44. b7 Kg8 45. b8=Q+ Kf7 46. Qb3+ Kf6 47. Qxa3 Kg5 48. Ke4 d5+ 49. Kxd5 Kxh6 50. Qh3+ Kg7 51. Ke6 h5 52. Qe3 h4 53. Qd4+ Kh6 54. Qxh4+ Kg7 55. Ke7 Kg8 56. Kf6 g5 57. Qxg5+ Kf8 58. Qg7+ Ke8 59. Qe7# {[%emt 0:14:00]} 1-0

[Event "FIDE WCCC Girls-10 2024"]
[Site "Montesilvano"]
[Date "2024.11.22"]
[Round "7.41"]
[White "Vitsiuk, Aleksandra"]
[Black "Kiss, Villo"]
[Result "1-0"]
[Annotator "NA RC"]
[ECO "B53"]
[WhiteElo "1476"]
[BlackElo "1492"]
[PlyCount "53"]
[EventDate "2024.11.18"]
[EventType "swiss"]
[EventCountry "ITA"]
[SourceTitle "playchess.com"]
[Source "ChessBase"]
[SourceQuality "1"]
[TimeControl "5400+30"]

1. e4 {[%emt 0:00:04]} c5 {[%emt 0:00:12]} 2. Nf3 {[%emt 0:00:46]} d6 {[%emt 0:00:14]} 3. d4 {[%emt 0:01:29]} cxd4 {[%emt 0:00:07]} 4. Qxd4 {[%emt 0:01:52]} Nc6 {[%emt 0:00:20]} 5. Bb5 {[%emt 0:01:35]} Bd7 {[%emt 0:00:26]} 6. Bxc6 {[%emt 0:01:53]} Bxc6 {[%emt 0:00:06]} 7. Nc3 {[%emt 0:03:56]} e6 {[%emt 0:05:53]} 8. Bg5 {[%emt 0:04:30]} Qa5 {[%emt 0:06:28]} 9. O-O-O {[%emt 0:01:37]} e5 {[%emt 0:22:47]} 10. Qd3 {[%emt 0:05:31]} g6 {[%emt 0:01:36]} 11. Nd2 {[%emt 0:03:07]} Qc7 {[%emt 0:04:54]} 12. Nc4 {[%emt 0:00:55]} f6 {[%emt 0:03:01]} 13. Be3 {[%emt 0:02:10]} Rd8 {[%emt 0:04:21]} 14. f4 {[%emt 0:04:34]} b5 {[%emt 0:03:30]} 15. Nd2 {[%emt 0:00:15]} b4 {[%emt 0:01:14]} 16. Nb5 {[%emt 0:00:35]} Bxb5 {[%emt 0:06:23]} 17. Qxb5+ {[%emt 0:00:14]} Rd7 {[%emt 0:00:25]} 18. Qxb4 {[%emt 0:01:14]} d5 {[%emt 0:01:53]} 19. Qa4 {[%emt 0:00:28]} d4 {[%emt 0:08:00]} 20. Bf2 {[%emt 0:00:08]} Ne7 {[%emt 0:05:12]} 21. fxe5 {[%emt 0:04:08]} fxe5 {[%emt 0:01:15]} 22. Bh4 {[%emt 0:01:40]} Nc6 {[%emt 0:00:42]} 23. Bf6 {[%emt 0:00:35]} Rg8 {[%emt 0:00:48]} 24. Rhf1 {[%emt 0:00:54]} Nb4 {[%emt 0:01:12]} 25. Qb3 {[%emt 0:00:35]} d3 {[%emt 0:01:07]} 26. c3 {[%emt 0:00:22]} Rf7 {[%emt 0:06:11]} 27. Qe6+ {[%emt 0:00:13]} 1-0

[Event "FIDE WCCC Girls-10 2024"]
[Site "Montesilvano"]
[Date "2024.11.22"]
[Round "7.43"]
[White "Pambieri, Nicole"]
[Black "Kovacikova, Simona"]
[Result "1-0"]
[Annotator "NA RC"]
[ECO "A20"]
[WhiteElo "1482"]
[BlackElo "1412"]
[PlyCount "109"]
[EventDate "2024.11.18"]
[EventType "swiss"]
[EventCountry "ITA"]
[SourceTitle "playchess.com"]
[Source "ChessBase"]
[SourceQuality "1"]
[TimeControl "5400+30"]

1. c4 {[%emt 0:00:02]} e5 {[%emt 0:00:07]} 2. g3 {[%emt 0:00:11]} c6 {[%emt 0:00:21]} 3. Bg2 {[%emt 0:00:38]} d5 {[%emt 0:00:16]} 4. cxd5 {[%emt 0:14:43]} cxd5 {[%emt 0:00:13]} 5. d4 {[%emt 0:04:22]} e4 {[%emt 0:16:54]} 6. Nc3 {[%emt 0:03:46]} Bb4 {[%emt 0:05:52]} 7. Bd2 {[%emt 0:03:52]} Bxc3 {[%emt 0:01:35]} 8. Bxc3 {[%emt 0:00:23]} Nc6 {[%emt 0:01:57]} 9. e3 {[%emt 0:01:07]} Nf6 {[%emt 0:09:13]} 10. Ne2 {[%emt 0:01:50]} O-O {[%emt 0:03:22]} 11. O-O {[%emt 0:00:43]} Bf5 {[%emt 0:02:32]} 12. Nf4 {[%emt 0:05:35]} Re8 {[%emt 0:10:19]} 13. Qb3 {[%emt 0:01:27]} Qd7 {[%emt 0:01:46]} 14. Rfc1 {[%emt 0:01:30]} Ne7 {[%emt 0:03:21]} 15. Ba5 {[%emt 0:04:51]} b6 {[%emt 0:02:56]} 16. Bd2 {[%emt 0:01:16]} Ng6 {[%emt 0:00:28]} 17. Nxg6 {[%emt 0:00:21]} hxg6 {[%emt 0:00:17]} 18. a4 {[%emt 0:03:13]} Bh3 {[%emt 0:01:49]} 19. a5 {[%emt 0:01:03]} Bxg2 {[%emt 0:01:08]} 20. Kxg2 {[%emt 0:00:09]} Qf5 {[%emt 0:03:49]} 21. axb6 {[%emt 0:18:51]} Qf3+ {[%emt 0:13:06]} 22. Kg1 {[%emt 0:00:17]} axb6 {[%emt 0:08:01]} 23. Rxa8 {[%emt 0:00:26]} Rxa8 {[%emt 0:00:10]} 24. Qxb6 {[%emt 0:00:19]} Kh7 {[%emt 0:05:06]} 25. Qd6 {[%emt 0:08:27]} Ra2 {[%emt 0:03:23]} 26. Bc3 {[%emt 0:00:31]} g5 {[%emt 0:01:02]} 27. Qb8 {[%emt 0:01:21]} Ng4 {[%emt 0:00:32]} 28. Rf1 {[%emt 0:00:14]} Ra1 {[%emt 0:00:56]} 29. Qb5 {[%emt 0:00:15]} Rc1 {[%emt 0:01:21]} 30. h3 {[%emt 0:03:05]} Rxf1+ {[%emt 0:01:37]} 31. Qxf1 {[%emt 0:00:11]} Nf6 {[%emt 0:00:50]} 32. b4 {[%emt 0:00:08]} g4 {[%emt 0:01:02]} 33. b5 {[%emt 0:00:50]} Nd7 {[%emt 0:00:46]} 34. Ba5 {[%emt 0:00:32]} Qf6 {[%emt 0:00:13]} 35. hxg4 {[%emt 0:00:42]} Kg6 {[%emt 0:00:26]} 36. Qb1 {[%emt 0:00:19]} Nb6 {[%emt 0:00:16]} 37. Qb4 {[%emt 0:00:35]} Nc4 {[%emt 0:01:09]} 38. b6 {[%emt 0:00:22]} Nxb6 {[%emt 0:00:21]} 39. Qxb6 {[%emt 0:00:57]} Qxb6 {[%emt 0:00:05]} 40. Bxb6 {[%emt 0:00:06]} Kg5 {[%emt 0:00:04]} 41. Kf1 {[%emt 0:00:33]} Kxg4 {[%emt 0:00:12]} 42. Ke2 {[%emt 0:00:18]} f6 {[%emt 0:00:58]} 43. Kd2 {[%emt 0:00:20]} Kf3 {[%emt 0:00:16]} 44. Kc3 {[%emt 0:03:12]} Kxf2 {[%emt 0:00:28]} 45. Kb4 {[%emt 0:00:06]} Kxg3 {[%emt 0:00:59]} 46. Kc5 {[%emt 0:00:08]} Kf3 {[%emt 0:00:09]} 47. Kxd5 {[%emt 0:00:08]} g5 {[%emt 0:01:41]} 48. Ke6 {[%emt 0:01:03]} Kxe3 {[%emt 0:00:17]} 49. d5+ {[%emt 0:00:11]} Kf4 {[%emt 0:00:40]} 50. d6 {[%emt 0:00:11]} g4 {[%emt 0:00:34]} 51. d7 {[%emt 0:00:12]} e3 {[%emt 0:00:14]} 52. d8=Q {[%emt 0:00:14]} e2 {[%emt 0:00:13]} 53. Qd2+ {[%emt 0:00:27]} Kf3 {[%emt 0:00:09]} 54. Qe3+ {[%emt 0:00:17]} Kg2 {[%emt 0:00:25]} 55. Qxe2+ {[%emt 0:00:03]} 1-0